bitfinex/quotes_ETHUSD_20260314
["timestamp","ask_amount","ask_price","bid_price","bid_amount"]
[1773513830292,1.64452847,2076.7,2076.3,0.46885337]
[1773513836504,1.64452847,2076.7,2076.5,0.0011]
[1773513841616,0.44268008,2076.9,2076.5,0.0011]
[1773513841911,0.44268008,2076.9,2076.5,0.47380907]
[1773513843530,0.44268008,2076.9,2076.3,0.001]
[1773513843531,0.44068008,2076.7,2076.3,0.001]
[1773513843694,0.44068008,2076.4,2076.3,0.001]
[1773513844013,0.89200323,2076.4,2076.1,0.47380907]
[1773513844330,0.45132315,2076.3,2076.1,0.47380907]
[1773513844496,0.44068008,2076.4,2076.1,0.47380907]
[1773513844698,0.45104569,2076.3,2076.1,0.47380907]
[1773513844890,0.44068008,2076.4,2076.1,0.47380907]
[1773513845213,0.45104569,2076.3,2076.1,0.47380907]
[1773513845414,0.44068008,2076.4,2076.1,0.47380907]
[1773513845614,0.45090408,2076.3,2076.1,0.47380907]
[1773513845812,0.44068008,2076.4,2076.1,0.47380907]
[1773513846018,0.45090408,2076.3,2076.1,0.47380907]
[1773513846188,0.44068008,2076.4,2076.1,0.47380907]
[1773513846517,0.4508018,2076.3,2076.1,0.47380907]
[1773513846719,1.64469016,2076.4,2076.1,0.47380907]
[1773513847023,0.48861516,2076.2,2076.0,0.001]
[1773513849030,0.001,2076.1,2076.0,0.001]
[1773513873549,0.001,2076.1,2075.9,0.47380907]
[1773513873743,0.45157729,2076.0,2075.9,0.0011]
[1773513874438,0.001,2076.1,2075.9,0.0011]
[1773513877853,0.45127678,2076.0,2075.9,0.0011]
[1773513878055,0.90285407,2076.0,2075.9,0.0011]
[1773513878567,2.10709299,2076.0,2075.9,0.0011]
[1773513881053,0.45157729,2075.9,2075.7,0.0011]
[1773513883753,1.20433357,2075.9,2075.7,0.0011]
[1773513884063,0.45157729,2075.8,2075.7,0.0011]
[1773513889554,0.001,2075.9,2075.7,0.0011]
[1773513889855,0.45257729,2075.9,2075.7,0.0011]
[1773513892657,1.65690471,2075.9,2075.7,0.0011]
[1773513894154,0.001,2075.9,2075.7,0.47118901]
[1773513901737,0.45061365,2075.8,2075.6,0.0011]
[1773513901935,0.46442383,2075.7,2075.4,0.0011]
[1773513902474,0.91513104,2075.6,2075.4,0.0011]
[1773513902762,0.46442383,2075.6,2075.4,0.0011]
[1773513903589,1.66890441,2075.6,2075.4,0.0011]
[1773513903887,1.20448058,2075.6,2075.4,0.47118901]
[1773513914895,1.20448058,2075.6,2075.2,0.47008901]
[1773513915097,0.46442383,2075.5,2075.2,0.47008901]
[1773513916096,1.20448058,2075.6,2075.2,0.47008901]
[1773513916397,1.66888261,2075.7,2075.3,0.47008901]
[1773513916576,0.45072605,2075.6,2075.3,0.47008901]
[1773513916777,1.66888261,2075.7,2075.3,0.47008901]
[1773513916988,0.45072605,2075.6,2075.3,0.47008901]
[1773513917293,1.66888261,2075.7,2075.3,0.47008901]
[1773513917487,0.45072709,2075.6,2075.3,0.47008901]
[1773513917688,1.66888261,2075.7,2075.3,0.47008901]
[1773513917871,0.45072709,2075.6,2075.3,0.47008901]
[1773513918170,1.66888261,2075.7,2075.3,0.47008901]
[1773513918470,0.45073249,2075.6,2075.3,0.47008901]
[1773513918672,1.66888261,2075.7,2075.3,0.47008901]
[1773513918969,0.45073249,2075.6,2075.3,0.47008901]
[1773513919170,1.66888261,2075.7,2075.3,0.47008901]
[1773513919406,0.45073685,2075.6,2075.3,0.47008901]
[1773513919579,1.66888261,2075.7,2075.3,0.47008901]
[1773513919781,0.45074166,2075.6,2075.3,0.47008901]
[1773513919982,1.66888261,2075.7,2075.3,0.47008901]
[1773513920196,0.45074166,2075.6,2075.3,0.47008901]
[1773513920490,1.66888261,2075.7,2075.3,0.47008901]
[1773513920689,0.45075505,2075.6,2075.3,0.47008901]
[1773513920993,1.66888261,2075.7,2075.5,0.0011]
[1773513921201,1.66888261,2075.7,2075.4,0.47008901]
[1773513921202,0.45075505,2075.6,2075.4,0.47008901]
[1773513921400,1.66888261,2075.7,2075.4,0.47008901]
[1773513921582,0.45077384,2075.6,2075.4,0.47008901]
[1773513921781,1.66888261,2075.7,2075.4,0.47008901]
[1773513921981,0.45077384,2075.6,2075.4,0.47008901]
[1773513922191,1.66888261,2075.7,2075.4,0.47008901]
[1773513922381,0.45079493,2075.6,2075.4,0.47008901]
[1773513922691,1.66888261,2075.7,2075.4,0.47008901]
[1773513922897,0.45079493,2075.6,2075.4,0.47008901]
[1773513923098,1.66888261,2075.7,2075.4,0.47008901]
[1773513923306,0.45081152,2075.6,2075.4,0.47008901]
[1773513923506,1.66888261,2075.7,2075.4,0.47008901]
[1773513923674,0.45082055,2075.6,2075.4,0.47008901]
[1773513923874,1.66888261,2075.7,2075.4,0.47008901]
[1773513924076,0.45082055,2075.6,2075.4,0.47008901]
[1773513924392,1.66888261,2075.7,2075.4,0.47008901]
[1773513924593,0.45085153,2075.6,2075.4,0.47008901]
[1773513924890,1.66888261,2075.7,2075.4,0.47008901]
[1773513925091,0.45085153,2075.6,2075.4,0.47008901]
[1773513925303,1.66888261,2075.7,2075.4,0.47008901]
[1773513925493,1.65536704,2075.6,2075.4,0.47008901]
[1773513925694,1.20447587,2075.6,2075.4,0.47008901]
[1773513927298,1.66887933,2075.7,2075.4,0.01915157]
[1773513927504,0.45099211,2075.6,2075.4,0.01915157]
[1773513927679,1.66887933,2075.7,2075.4,0.01915157]
[1773513927879,0.45097039,2075.6,2075.4,0.01915157]
[1773513928078,1.66887933,2075.7,2075.4,0.01915157]
[1773513929204,1.2044555,2075.7,2075.4,0.01915157]
[1773513933084,1.2044555,2075.7,2075.5,0.0011]
[1773513944511,0.001,2075.9,2075.5,0.47059771]
[1773513944810,0.001,2075.9,2075.6,0.0011]
[1773513945014,0.001,2075.9,2075.7,0.46949771]
[1773513959144,0.001,2075.9,2075.7,0.46949771]
[1773513962561,0.001,2076.1,2075.7,0.46949771]
[1773513962849,0.48839179,2076.7,2075.9,0.46081233]
[1773513963345,0.48839179,2076.5,2075.9,0.46081233]
[1773513966550,0.48839179,2076.3,2075.8,0.04817418]
[1773513966740,0.48839179,2076.3,2075.6,0.0011]
[1773513967618,0.48839179,2076.3,2075.6,0.46191233]
[1773513968550,1.6925147,2076.2,2076.1,0.0011]
[1773513968855,0.48839179,2076.1,2075.6,0.46191233]
[1773513969153,0.48839179,2076.1,2075.9,0.0011]
[1773513971935,0.48839179,2076.0,2075.9,0.0011]
[1773513973959,1.69263071,2076.0,2075.9,0.0011]
[1773513996566,1.20422331,2076.1,2075.9,0.0011]
[1773513996760,1.20422331,2076.1,2075.9,0.50062398]
[1773514004696,1.10422331,2076.1,2075.9,0.50062398]
[1773514005096,1.00422331,2076.1,2075.9,0.50062398]
[1773514017811,0.001,2076.3,2075.9,0.50062398]
[1773514018127,1.20415273,2076.2,2075.9,0.50062398]
[1773514019423,0.4834098,2076.2,2075.9,0.50062398]
[1773514020895,0.4834098,2076.2,2075.9,0.0011]
[1773514023628,1.68758829,2076.2,2075.9,0.0011]
[1773514025439,1.68758829,2076.2,2075.9,0.48042348]
[1773514025642,1.20417849,2076.2,2075.9,0.48042348]
[1773514025819,0.4844098,2076.3,2075.9,0.48042348]
[1773514027411,0.4844098,2076.3,2076.1,0.0011]
[1773514027733,0.4844098,2076.3,2076.1,1.389e-05]
[1773514037243,0.4844098,2076.3,2076.1,0.47933737]
[1773514037244,1.20412291,2076.2,2076.1,0.47933737]
[1773514037945,1.20412291,2076.2,2076.1,1.389e-05]
[1773514038748,0.4834098,2076.2,2076.1,1.389e-05]
[1773514041851,4.81602774,2076.6,2076.1,1.389e-05]
[1773514042049,5.28057713,2076.6,2076.1,1.389e-05]
[1773514042356,0.46354939,2076.5,2076.1,1.389e-05]
[1773514044159,1.20400693,2076.4,2076.1,1.389e-05]
[1773514050780,1.66755632,2076.4,2076.1,1.389e-05]
[1773514050942,1.66755632,2076.4,2076.3,0.001]
[1773514051143,1.66755632,2076.4,2076.3,1.258e-05]
[1773514051673,1.66955632,2076.4,2076.3,1.258e-05]
[1773514061381,1.66955632,2076.4,2076.1,0.49727491]
[1773514064594,1.66955632,2076.4,2076.3,0.001]
[1773514066496,1.67055632,2076.4,2076.3,0.001]
[1773514069612,1.66955632,2076.4,2076.3,0.001]
[1773514071211,1.66955632,2076.4,2076.1,0.49727491]
[1773514071398,0.001,2076.3,2076.1,0.49727491]
[1773514076695,0.002,2076.2,2076.1,0.49727491]
[1773514081143,5.29824128,2076.7,2076.1,0.07053193]
[1773514081329,5.29824128,2076.7,2076.2,0.07051804]
[1773514083916,0.48069789,2076.6,2076.2,0.07051804]
[1773514088243,1.20394895,2076.5,2076.4,0.001]
[1773514092246,1.68662693,2076.6,2076.4,0.001]
[1773514093355,0.002,2076.7,2076.5,0.07051804]
[1773514094654,0.48269789,2076.9,2076.6,0.07051804]
[1773514094655,0.002,2076.9,2076.6,0.07051804]
[1773514100126,0.001,2076.7,2076.6,0.07051804]
[1773514101654,0.002,2076.9,2076.6,0.07051804]
[1773514106559,0.002,2076.9,2076.6,0.10691374]
[1773514109161,0.002,2076.9,2076.6,1.31080295]
[1773514109340,0.002,2076.9,2076.6,0.10691374]
[1773514111563,0.002,2076.9,2076.8,0.001]
[1773514117060,0.48069789,2077.0,2076.8,0.001]
[1773514117265,0.46474098,2076.9,2076.8,0.001]
[1773514125274,0.46674098,2076.9,2076.8,0.001]
[1773514128459,0.002,2076.9,2076.8,0.07151804]
[1773514130983,0.002,2076.9,2076.8,0.001]
[1773514140103,0.46674098,2076.9,2076.8,0.001]
[1773514140267,0.46674098,2076.9,2076.6,0.001]
[1773514141781,1.20573329,2076.9,2076.6,0.001]
[1773514141987,0.46424098,2076.8,2076.6,0.001]
[1773514148567,0.46424098,2076.7,2076.6,0.001]
[1773514159913,0.46424098,2076.7,2076.4,0.001]
[1773514161602,0.002,2076.5,2076.4,0.001]
[1773514163115,0.002,2076.5,2076.4,0.07251804]
[1773514163818,0.46624098,2076.7,2076.4,1.27652497]
[1773514164935,0.002,2076.7,2076.4,1.20500693]
[1773514165094,0.002,2076.7,2076.5,0.07151804]
[1773514176128,0.002,2076.7,2076.5,0.07251804]
[1773514185859,0.002,2076.7,2076.4,1.27750781]
[1773514186144,0.002,2076.7,2076.4,0.07351804]
[1773514186326,0.48253652,2076.7,2076.4,0.07351804]
[1773514186647,1.2057783,2076.8,2076.4,0.07351804]
[1773514186648,0.48253652,2076.8,2076.4,1.27751823]
[1773514187147,0.48253652,2076.8,2076.5,0.47574722]
[1773514187946,0.48253652,2076.8,2076.6,0.001]
[1773514188116,0.002,2076.7,2076.6,0.001]
[1773514188854,0.002,2076.7,2076.6,0.47674722]
[1773514189142,0.002,2076.8,2076.6,0.47674722]
[1773514190524,0.002,2076.8,2076.6,0.52490285]
[1773514194155,0.002,2076.8,2076.6,1.72879273]
[1773514194447,0.002,2076.8,2076.6,1.25304551]
[1773514194647,1.68624201,2077.0,2076.7,0.49280744]
[1773514194648,0.48253652,2077.0,2076.7,0.49280744]
[1773514198374,0.48253652,2077.0,2076.7,1.69662925]
[1773514198582,0.002,2077.1,2076.8,0.49280744]
[1773514199079,0.47898011,2077.1,2076.8,0.49280744]
[1773514200485,0.47898011,2077.1,2076.8,0.49390744]
[1773514200863,0.47898011,2077.1,2076.8,1.69767412]
[1773514201352,0.47898011,2077.1,2076.8,1.74582511]
[1773514205572,0.47898011,2077.1,2076.8,1.69767412]
[1773514207284,0.002,2077.1,2076.9,0.49280744]
[1773514207891,1.68039073,2077.5,2076.9,0.54095611]
[1773514208881,0.47698011,2077.4,2077.0,1.20365912]
[1773514209082,0.47698011,2077.4,2077.0,1.69646656]
[1773514210577,0.47698011,2077.4,2077.0,0.49280744]
[1773514214187,0.47698011,2077.4,2077.0,0.49380744]
[1773514214484,0.002,2077.2,2077.0,0.49380744]
[1773514236903,0.002,2077.2,2077.0,0.001]
[1773514238280,0.49714783,2077.2,2077.0,0.001]
[1773514239007,0.49714783,2077.2,2076.6,0.001]
[1773514239208,0.49714783,2077.2,2076.5,0.0011]
[1773514239209,0.49514783,2077.0,2076.5,0.0011]
[1773514239413,0.49514783,2076.8,2076.5,0.0011]
[1773514239707,0.002,2077.2,2076.5,0.0011]
[1773514239708,0.49514783,2076.6,2076.5,0.0011]
[1773514256622,1.20389097,2076.6,2076.4,0.001]
[1773514256799,0.47907106,2076.5,2076.4,0.0041]
[1773514267742,0.47907106,2076.5,2076.3,0.001]
[1773514281045,0.47907106,2076.5,2076.2,2.67909472]
[1773514286953,0.47907106,2076.5,2076.2,3.15541419]
[1773514288151,0.47907106,2076.5,2076.4,0.0011]
[1773514288346,0.93024415,2076.5,2076.4,0.0011]
[1773514291736,0.93024415,2076.5,2076.2,1.95131947]
[1773514291942,0.93711793,2076.4,2076.2,1.475]
[1773514292257,0.48594484,2076.4,2076.2,1.475]
[1773514293155,0.48594484,2076.4,2076.2,1.02385397]
[1773514293361,0.93706204,2076.3,2076.1,1.389e-05]
[1773514293657,0.48594484,2076.3,2076.1,1.389e-05]
[1773514293855,0.48594484,2076.4,2076.1,1.389e-05]
[1773514294048,0.48594484,2076.4,2076.1,0.47633336]
[1773514295954,0.48594484,2076.4,2076.1,1.389e-05]
[1773514299864,0.48594484,2076.4,2076.3,0.0011]
[1773514300066,0.001,2076.2,2076.1,1.389e-05]
[1773514320776,0.001,2076.2,2076.1,0.47741862]
[1773514347734,0.001,2076.2,2076.1,1.68159953]
[1773514352042,0.001,2076.2,2076.1,1.389e-05]
[1773514422130,0.45403632,2076.7,2076.1,1.389e-05]
[1773514422553,0.45403632,2076.5,2076.1,1.389e-05]
[1773514425230,1.65798851,2076.5,2076.1,0.45733062]
[1773514426870,0.45403632,2076.4,2076.1,0.45733062]
[1773514429477,0.45403632,2076.9,2076.1,0.45733062]
[1773514429632,0.45403632,2076.8,2076.3,0.45731673]
[1773514431068,0.45403632,2076.8,2076.3,0.45841673]
[1773514431767,1.65785507,2076.8,2076.3,0.45841673]
[1773514432066,0.46997184,2076.7,2076.3,1.66247383]
[1773514432855,0.46997184,2076.7,2076.4,0.45404172]
[1773514435649,1.67379059,2076.8,2076.4,0.45404172]
[1773514437145,1.20377488,2076.9,2076.5,0.5]
[1773514438668,0.002,2077.0,2076.5,0.5]
[1773514441283,0.002,2077.0,2076.6,0.5]
[1773514443043,0.001,2076.8,2076.6,0.5]
[1773514443244,0.002,2077.0,2076.6,0.5]
[1773514445271,0.002,2077.0,2076.6,0.54815563]
[1773514447167,0.002,2077.0,2076.6,0.5]
[1773514447745,0.002,2077.0,2076.5,0.0011]
[1773514454279,0.002,2077.0,2076.7,0.001]
[1773514454449,0.002,2076.8,2076.5,0.0011]
[1773514456372,0.002,2076.8,2076.3,0.0011]
[1773514456892,0.002,2076.8,2076.3,0.5011]
[1773514467222,0.002,2076.8,2076.5,0.0011]
[1773514467423,0.001,2076.6,2076.5,0.0011]
[1773514471417,0.001,2076.6,2076.3,0.45143433]
[1773514475529,1.20489097,2076.6,2076.3,0.45143433]
[1773514479521,1.20489097,2076.6,2076.5,0.0011]
[1773514483710,1.65614223,2076.6,2076.5,0.0011]
[1773514484010,1.65614223,2076.6,2076.3,0.00019786]
[1773514484220,0.45125126,2076.5,2076.3,0.00019786]
[1773514484420,0.45125126,2076.4,2076.3,0.00019786]
[1773514484921,1.20489097,2076.6,2076.3,0.00019786]
[1773514485839,1.69599379,2076.6,2076.3,0.00019786]
[1773514491441,1.69599379,2076.6,2076.5,0.001]
[1773514493947,1.69599379,2076.6,2076.3,0.001]
[1773514494637,1.69599379,2076.6,2076.3,0.49768113]
[1773514495246,1.69599379,2076.6,2076.2,0.49768113]
[1773514503844,1.69599379,2076.6,2076.4,0.001]
[1773514517058,1.69599379,2076.6,2076.5,0.001]
[1773514517261,1.69599379,2076.6,2076.4,0.001]
[1773514526470,0.49247233,2076.6,2076.4,0.001]
[1773514532277,1.20394895,2076.5,2076.4,0.001]
[1773514542091,0.49147233,2076.5,2076.4,0.001]
[1773514549417,0.49247233,2076.6,2076.4,0.001]
[1773514550604,0.001,2076.6,2076.4,0.4553078]
[1773514554094,0.001,2076.6,2076.3,0.001]
[1773514554400,0.001,2076.6,2076.3,0.0998746]
[1773514556666,0.49359821,2076.6,2076.3,0.0998746]
[1773514560296,1.20394895,2076.5,2076.3,0.0998746]
[1773514561174,1.69752861,2076.6,2076.3,0.0998746]
[1773514561479,1.2049304,2076.6,2076.3,0.0998746]
[1773514562400,0.49359821,2076.6,2076.3,0.0998746]
[1773514564480,1.69748918,2076.6,2076.5,0.001]
[1773514564880,1.20489097,2076.6,2076.5,0.001]
[1773514565273,1.20383763,2076.7,2076.5,0.0998746]
[1773514569388,1.6984276,2076.8,2076.5,0.0998746]
[1773514570215,1.6984276,2076.8,2076.5,0.001]
[1773514572514,1.6984276,2076.8,2076.5,0.0998746]
[1773514572822,0.49459821,2076.8,2076.5,0.0998746]
[1773514573198,1.69838046,2076.8,2076.5,0.0998746]
[1773514577229,0.002,2076.6,2076.5,0.0998746]
[1773514583802,1.69837356,2076.8,2076.5,0.0998746]
[1773514584208,0.49459821,2076.8,2076.5,0.0998746]
[1773514585244,1.69837815,2076.8,2076.5,0.0998746]
[1773514588535,0.49459821,2076.8,2076.5,0.0998746]
[1773514589427,0.49459821,2076.8,2076.7,0.001]
[1773514590929,0.002,2076.8,2076.7,0.001]
[1773514602263,0.45523204,2076.8,2076.7,0.001]
[1773514602566,0.45523204,2076.8,2076.5,0.001]
[1773514605951,0.45323204,2076.7,2076.5,0.001]
[1773514609553,0.45323204,2076.7,2076.3,0.001]
[1773514610946,0.48819556,2076.5,2076.3,0.001]
[1773514612858,1.69214695,2076.5,2076.3,0.001]
[1773514613227,0.47522637,2076.4,2076.3,0.001]
[1773514618465,0.002,2076.5,2076.3,0.001]
[1773514618847,0.47722637,2076.5,2076.3,0.001]
[1773514620762,0.47522637,2076.4,2076.3,0.001]
[1773514644987,0.002,2076.5,2076.3,0.001]
[1773514645861,0.49568919,2076.5,2076.3,0.001]
[1773514664808,0.002,2076.5,2076.3,0.001]
[1773514675220,0.45844614,2076.5,2076.3,0.001]
[1773514680325,1.66045307,2076.4,2076.1,1.389e-05]
[1773514680620,0.45644614,2076.4,2076.1,1.389e-05]
[1773514683529,0.45644614,2076.4,2076.1,0.10088849]
[1773514684022,0.45644614,2076.4,2076.1,1.389e-05]
[1773514684526,0.45644614,2076.4,2076.3,0.001]
[1773514690432,0.002,2076.8,2076.3,0.001]
[1773514690433,0.002,2076.9,2076.5,0.1008746]
[1773514690636,0.002,2076.9,2076.3,0.001]
[1773514690637,5.069,2078.0,2077.3,0.76103716]
[1773514690834,1.881,2079.5,2077.9,0.09873889]
[1773514690835,1.20290622,2078.3,2077.9,0.09873889]
[1773514691037,0.45644614,2078.2,2077.4,0.76103716]
[1773514691328,0.45844614,2078.2,2077.5,0.09873889]
[1773514692931,0.45644614,2078.0,2077.5,0.09873889]
[1773514693229,0.45644614,2078.0,2077.3,1.53173889]
[1773514693402,0.45644614,2077.8,2077.3,1.53173889]
[1773514693803,0.45644614,2077.8,2077.4,0.09873889]
[1773514694630,0.45644614,2077.9,2077.4,0.09873889]
[1773514694837,0.81220412,2077.9,2077.4,0.09873889]
[1773514695805,1.55895366,2077.8,2077.4,0.09873889]
[1773514696906,0.35575798,2077.8,2077.4,0.09873889]
[1773514697106,5.26987429,2078.0,2077.4,0.49394226]
[1773514697416,1.20317373,2077.9,2077.4,0.49394226]
[1773514699736,0.45644614,2077.9,2077.1,0.49394226]
[1773514699911,0.45644614,2077.9,2077.2,0.49394226]
[1773514704444,0.473729,2077.7,2077.2,0.49394226]
[1773514706545,0.473729,2077.5,2077.2,0.49394226]
[1773514707847,1.20331151,2077.6,2077.2,0.49394226]
[1773514708345,1.20331151,2077.6,2077.4,0.001]
[1773514716561,1.67704051,2077.6,2077.4,0.001]
[1773514716850,0.002,2077.7,2077.4,0.47556588]
[1773514717233,0.475729,2077.7,2077.4,0.47556588]
[1773514719638,1.20331151,2077.6,2077.4,0.47556588]
[1773514721154,1.20531151,2077.6,2077.4,0.47556588]
[1773514731193,0.002,2077.6,2077.4,0.47556588]
[1773514738202,0.002,2077.6,2077.4,0.47075289]
[1773514741290,0.002,2077.6,2077.2,0.45270782]
[1773514743192,0.47706744,2077.4,2077.1,0.001]
[1773514743485,0.47706744,2077.4,2077.1,0.45370782]
[1773514743661,0.47906744,2077.6,2077.2,0.45270782]
[1773514743860,0.42976895,2077.5,2077.2,0.45270782]
[1773514744086,0.47906744,2077.6,2077.2,0.45270782]
[1773514744388,0.42976912,2077.5,2077.2,0.45270782]
[1773514744591,0.47906744,2077.6,2077.2,0.45270782]
[1773514744790,0.42975037,2077.5,2077.2,0.45270782]
[1773514744989,0.47906744,2077.6,2077.4,0.001]
[1773514745192,0.42975037,2077.5,2077.2,0.45270782]
[1773514745372,1.68241059,2077.6,2077.2,0.45270782]
[1773514745573,0.42973553,2077.5,2077.2,0.45270782]
[1773514745774,1.68241059,2077.6,2077.2,0.45270782]
[1773514745959,0.42973553,2077.5,2077.2,0.45270782]
[1773514746159,1.68241059,2077.6,2077.2,0.45270782]
[1773514746393,0.42972254,2077.5,2077.2,0.45270782]
[1773514746591,1.68241059,2077.6,2077.2,0.45270782]
[1773514746888,0.42972254,2077.5,2077.2,0.45270782]
[1773514747093,1.68241059,2077.6,2077.2,0.45270782]
[1773514747268,0.42972043,2077.5,2077.2,0.45270782]
[1773514747567,1.68241059,2077.6,2077.2,0.45270782]
[1773514747769,0.42971026,2077.5,2077.2,0.45270782]
[1773514747965,1.68241059,2077.6,2077.2,0.45270782]
[1773514748290,0.43526453,2077.5,2077.2,0.45270782]
[1773514748492,1.68241059,2077.6,2077.2,0.45270782]
[1773514748694,0.43524788,2077.5,2077.2,0.45270782]
[1773514748897,1.68241059,2077.6,2077.2,0.45270782]
[1773514749065,0.43524788,2077.5,2077.2,0.45270782]
[1773514749261,1.68241059,2077.6,2077.2,0.45270782]
[1773514749486,0.43523296,2077.5,2077.2,0.45270782]
[1773514749676,1.68241059,2077.6,2077.2,0.45270782]
[1773514749874,0.43523296,2077.5,2077.2,0.45270782]
[1773514750076,1.68241059,2077.6,2077.2,0.45270782]
[1773514750277,0.43522955,2077.5,2077.2,0.45270782]
[1773514750494,1.68241059,2077.6,2077.2,0.45270782]
[1773514750694,0.43521945,2077.5,2077.2,0.45270782]
[1773514750996,1.68241059,2077.6,2077.2,0.45270782]
[1773514751297,0.43521945,2077.5,2077.2,0.45270782]
[1773514751470,1.68241059,2077.6,2077.2,0.45270782]
[1773514751676,0.91227468,2077.5,2077.2,0.45270782]
[1773514751874,0.47706744,2077.5,2077.2,0.45270782]
[1773514754402,0.47706744,2077.5,2077.1,1.65730584]
[1773514755081,1.20534315,2077.6,2077.2,0.45270782]
[1773514755292,0.43518105,2077.5,2077.2,0.45270782]
[1773514755592,1.20534315,2077.6,2077.2,0.45270782]
[1773514755790,0.43517024,2077.5,2077.2,0.45270782]
[1773514756106,1.68241059,2077.6,2077.2,0.45270782]
[1773514756305,0.43516858,2077.5,2077.2,0.45270782]
[1773514756607,1.68241059,2077.6,2077.4,0.001]
[1773514756774,0.43516019,2077.5,2077.2,0.45270782]
[1773514756974,1.68241059,2077.6,2077.2,0.45270782]
[1773514757169,0.43516019,2077.5,2077.2,0.45270782]
[1773514757402,1.68241059,2077.6,2077.2,0.45270782]
[1773514757592,0.43515249,2077.5,2077.2,0.45270782]
[1773514757795,1.68241059,2077.6,2077.2,0.45270782]
[1773514758104,0.43515249,2077.5,2077.2,0.45270782]
[1773514758321,1.68241059,2077.6,2077.2,0.45270782]
[1773514758476,0.44100795,2077.5,2077.2,0.45270782]
[1773514758678,1.68241059,2077.6,2077.2,0.45270782]
[1773514758876,0.44100795,2077.5,2077.2,0.45270782]
[1773514759175,1.68241059,2077.6,2077.2,0.45270782]
[1773514759376,0.4410046,2077.5,2077.2,0.45270782]
[1773514759684,1.68241059,2077.6,2077.2,0.45270782]
[1773514759884,0.4410046,2077.5,2077.2,0.45270782]
[1773514760103,1.68241059,2077.6,2077.2,0.45270782]
[1773514760301,0.44100557,2077.5,2077.2,0.45270782]
[1773514760510,1.68241059,2077.6,2077.2,0.45270782]
[1773514760710,0.44100313,2077.5,2077.2,0.45270782]
[1773514760900,1.68241059,2077.6,2077.2,0.45270782]
[1773514761102,0.44100313,2077.5,2077.2,0.45270782]
[1773514761306,1.68241059,2077.6,2077.2,0.45270782]
[1773514761486,0.4410034,2077.5,2077.2,0.45270782]
[1773514761685,1.68241059,2077.6,2077.2,0.45270782]
[1773514761887,0.4410034,2077.5,2077.2,0.45270782]
[1773514762111,1.68241059,2077.6,2077.2,0.45270782]
[1773514762415,0.44100639,2077.5,2077.2,0.45270782]
[1773514762598,1.68241059,2077.6,2077.2,0.45270782]
[1773514762797,0.44100636,2077.5,2077.2,0.45270782]
[1773514762996,1.68241059,2077.6,2077.2,0.45270782]
[1773514763297,0.44100636,2077.5,2077.2,0.45270782]
[1773514763498,1.68241059,2077.6,2077.2,0.45270782]
[1773514763797,0.44101112,2077.5,2077.2,0.45270782]
[1773514763982,1.68241059,2077.6,2077.2,0.45270782]
[1773514764188,0.91872238,2077.5,2077.1,1.66885319]
[1773514764388,0.47771126,2077.5,2077.1,1.66885319]
[1773514764617,0.47771126,2077.5,2077.2,0.46425517]
[1773514768223,0.47771126,2077.5,2077.4,0.001]
[1773514768398,0.47771126,2077.5,2077.2,0.46425517]
[1773514768399,0.91879346,2077.5,2077.2,0.46425517]
[1773514768606,0.002,2077.4,2077.2,0.46425517]
[1773514769523,0.002,2077.4,2077.1,0.001]
[1773514769725,0.91882227,2077.3,2077.1,0.001]
[1773514769896,0.47771126,2077.2,2077.1,0.001]
[1773514770224,1.6812027,2077.3,2077.1,0.001]
[1773514770517,1.6812027,2077.3,2077.0,0.46425517]
[1773514770722,1.6812027,2077.3,2076.9,1.96325517]
[1773514771622,1.6812027,2077.3,2077.0,0.46425517]
[1773514771922,1.6812027,2077.3,2077.0,0.0930722]
[1773514772327,0.47771126,2077.3,2077.0,0.0930722]
[1773514773406,1.68120741,2077.3,2077.0,0.0930722]
[1773514773912,1.68120741,2077.3,2076.9,1.96325517]
[1773514774118,0.47771126,2077.2,2076.9,1.96325517]
[1773514774320,0.40794227,2077.3,2077.0,0.46425517]
[1773514775600,1.2054695,2077.4,2077.0,0.46425517]
[1773514775930,0.44067014,2077.3,2077.0,0.46425517]
[1773514776227,1.2054695,2077.4,2077.0,0.46425517]
[1773514776428,0.44062757,2077.3,2077.0,0.46425517]
[1773514776628,1.2054695,2077.4,2077.0,0.46425517]
[1773514776827,0.44062757,2077.3,2077.0,0.46425517]
[1773514777029,1.2054695,2077.4,2077.0,0.46425517]
[1773514777212,0.44062757,2077.3,2077.0,0.46425517]
[1773514777413,1.2054695,2077.4,2077.0,0.46425517]
[1773514777612,0.44059294,2077.3,2077.0,0.46425517]
[1773514777812,1.2054695,2077.4,2077.0,0.46425517]
[1773514778015,0.44059294,2077.3,2077.0,0.46425517]
[1773514778320,1.2054695,2077.4,2077.0,0.46425517]
[1773514778517,0.44056296,2077.3,2077.0,0.46425517]
[1773514778733,1.2054695,2077.4,2077.0,0.46425517]
[1773514779060,0.44056296,2077.3,2076.9,0.001]
[1773514779212,0.44056296,2077.2,2076.9,0.001]
[1773514779417,0.44056296,2077.1,2076.9,0.001]
[1773514779613,1.2054695,2077.4,2076.7,1.70382938]
[1773514779814,0.44047138,2077.3,2077.1,0.001]
[1773514780026,0.44047138,2077.2,2076.8,0.5]
[1773514780225,0.44247138,2077.1,2076.8,0.5]
[1773514780426,0.002,2077.1,2076.9,0.001]
[1773514780732,0.002,2077.1,2076.8,0.5]
[1773514790759,0.002,2077.1,2076.7,1.20382938]
[1773514790915,0.002,2077.1,2076.6,10.20421358]
[1773514791321,0.002,2077.1,2076.6,9.70421358]
[1773514791518,0.002,2077.1,2076.7,0.5]
[1773514792746,0.002,2077.1,2077.0,0.001]
[1773514792943,0.002,2077.1,2076.7,0.5]
[1773514793129,0.002,2077.1,2076.8,0.001]
[1773514793326,0.002,2077.1,2076.7,0.5]
[1773514794629,0.4400257,2077.0,2076.7,0.5]
[1773514794951,0.002,2077.1,2076.7,0.5]
[1773514795131,0.4400257,2077.0,2076.7,0.5]
[1773514795327,0.002,2077.1,2076.7,0.5]
[1773514795543,0.44005754,2077.0,2076.7,0.5]
[1773514795853,0.002,2077.1,2076.7,0.5]
[1773514796025,0.44005754,2077.0,2076.7,0.5]
[1773514796325,0.002,2077.1,2076.7,0.5]
[1773514796529,0.44010485,2077.0,2076.7,0.5]
[1773514796842,0.002,2077.1,2076.7,0.5]
[1773514797043,1.64379839,2077.0,2076.7,0.5]
[1773514797350,1.20369354,2077.0,2076.7,0.5]
[1773514798348,1.20369354,2077.0,2076.6,8.19521358]
[1773514798522,1.20369354,2077.0,2076.6,8.69521358]